bitfinex/quotes_BTCUSD_20250131
["timestamp","ask_amount","ask_price","bid_price","bid_amount"]
[1738290551543,0.5865325,104410.0,104400.0,0.0001219]
[1738290553175,0.5665325,104410.0,104400.0,0.0001219]
[1738290553402,0.5865325,104410.0,104400.0,0.0001219]
[1738290564958,0.56697091,104410.0,104400.0,0.0001219]
[1738290572665,0.52450722,104410.0,104400.0,0.0001219]
[1738290573861,0.70270085,104410.0,104400.0,0.0001219]
[1738290575774,0.70570085,104410.0,104400.0,0.0001219]
[1738290576131,0.70670085,104410.0,104400.0,0.0001219]
[1738290576536,0.66817148,104410.0,104400.0,0.0001219]
[1738290576944,0.57092832,104410.0,104400.0,0.0001219]
[1738290579788,0.66828508,104410.0,104400.0,0.0001219]
[1738290580166,0.57092832,104410.0,104400.0,0.0001219]
[1738290586722,0.66817148,104410.0,104400.0,0.0001219]
[1738290589635,0.14785675,104410.0,104400.0,0.0001219]
[1738290590085,0.27122832,104410.0,104400.0,0.0001219]
[1738290590295,0.31832832,104410.0,104400.0,0.0001219]
[1738290591292,0.66147148,104410.0,104400.0,0.0001219]
[1738290596608,0.78484305,104410.0,104400.0,0.0001219]
[1738290596840,0.80423894,104410.0,104400.0,0.0001219]
[1738290598407,0.68086737,104410.0,104400.0,0.0001219]
[1738290598607,0.71943944,104410.0,104400.0,0.0001219]
[1738290599451,0.75121778,104410.0,104400.0,0.0001219]
[1738290600062,0.69943944,104410.0,104400.0,0.0001219]
[1738290613932,0.49546762,104410.0,104400.0,0.0001219]
[1738290614627,0.57643944,104410.0,104400.0,0.0001219]
[1738290629638,0.70233944,104410.0,104400.0,0.0001219]
[1738290629836,0.73233944,104410.0,104400.0,0.0001219]
[1738290629963,0.8296962,104410.0,104400.0,0.0001219]
[1738290636310,0.73233944,104410.0,104400.0,0.0001219]
[1738290639807,0.81331126,104410.0,104400.0,0.0001219]
[1738290640531,0.313691,104390.0,104380.0,0.00048292]
[1738290640751,0.49190598,104390.0,104380.0,0.00048292]
[1738290640992,0.5728778,104390.0,104380.0,0.00048292]
[1738290641916,0.5728778,104390.0,104380.0,0.00148292]
[1738290643305,0.5728778,104390.0,104380.0,0.00448292]
[1738290644140,0.67023456,104390.0,104380.0,0.00448292]
[1738290644412,0.5728778,104390.0,104380.0,0.00448292]
[1738290646118,0.58254246,104390.0,104380.0,0.00448292]
[1738290646251,0.60155146,104390.0,104380.0,0.00448292]
[1738290648232,0.40432748,104390.0,104380.0,0.00448292]
[1738290649604,0.40432748,104390.0,104380.0,0.07948292]
[1738290650181,0.40432748,104390.0,104380.0,0.07960482]
[1738290650603,0.23432748,104390.0,104380.0,0.07960482]
[1738290651404,0.23432748,104390.0,104380.0,0.12830482]
[1738290656878,0.23432748,104390.0,104380.0,0.00460482]
[1738290657018,0.41254246,104390.0,104380.0,0.00460482]
[1738290658022,0.23432748,104390.0,104380.0,0.00460482]
[1738290664492,0.23432748,104390.0,104380.0,0.00060482]
[1738290670287,0.00966466,104390.0,104380.0,0.38675298]
[1738290670433,0.00025599,104400.0,104390.0,0.166691]
[1738290670634,0.143691,104390.0,104380.0,0.12900482]
[1738290670842,0.143691,104390.0,104380.0,0.00060482]
[1738290670843,0.22466282,104390.0,104380.0,0.00060482]
[1738290673598,0.22466282,104390.0,104380.0,0.00160482]
[1738290684626,0.143691,104390.0,104380.0,0.10570482]
[1738290685904,0.14394699,104390.0,104380.0,0.10570482]
[1738290689086,0.22491881,104390.0,104380.0,0.10570482]
[1738290690425,0.30811881,104390.0,104380.0,0.00160482]
[1738290695984,0.43479063,104390.0,104380.0,0.00160482]
[1738290696441,0.58479063,104390.0,104380.0,0.00160482]
[1738290696642,0.60479063,104390.0,104380.0,0.00160482]
[1738290696843,0.52381881,104390.0,104380.0,0.00160482]
[1738290703427,0.52765281,104390.0,104380.0,0.00160482]
[1738290710795,0.50765281,104390.0,104380.0,0.00160482]
[1738290710995,0.52765281,104390.0,104380.0,0.00160482]
[1738290712977,0.52381881,104390.0,104380.0,0.00160482]
[1738290714154,0.39491881,104390.0,104380.0,0.00160482]
[1738290714370,0.31394699,104390.0,104380.0,0.00160482]
[1738290715094,0.39491881,104390.0,104380.0,0.00160482]
[1738290717683,0.57324739,104390.0,104380.0,0.00160482]
[1738290718005,0.62953379,104390.0,104380.0,0.00160482]
[1738290718208,0.75550561,104390.0,104380.0,0.00160482]
[1738290718362,0.65802046,104380.0,104370.0,0.0001219]
[1738290718560,0.85262038,104380.0,104370.0,0.0001219]
[1738290718966,0.85262038,104380.0,104370.0,0.00060491]
[1738290720123,0.85362038,104380.0,104370.0,0.00060491]
[1738290720535,0.8576927,104380.0,104370.0,0.00060491]
[1738290721389,0.8576927,104380.0,104370.0,9.1e-07]
[1738290721596,0.415147,104350.0,104340.0,0.00029938]
[1738290721803,0.63588405,104350.0,104340.0,0.00078268]
[1738290722837,0.63588405,104350.0,104340.0,0.00278268]
[1738290723246,0.63688405,104350.0,104340.0,0.00778268]
[1738290724695,0.64658675,104350.0,104340.0,0.00778268]
[1738290730559,0.57018675,104350.0,104340.0,0.00778268]
[1738290730724,0.52518675,104350.0,104340.0,0.00778268]
[1738290734422,0.52518675,104350.0,104340.0,0.00578268]
[1738290734626,0.52418675,104350.0,104340.0,0.00078268]
[1738290734820,0.52418675,104350.0,104340.0,0.00478268]
[1738290735026,0.64768064,104350.0,104340.0,0.00478268]
[1738290735312,0.72918064,104350.0,104340.0,0.00478268]
[1738290735463,0.60568675,104350.0,104340.0,0.00278268]
[1738290735677,0.60568675,104350.0,104340.0,0.00378268]
[1738290735872,0.72918064,104350.0,104340.0,0.00378268]
[1738290736068,0.60568675,104350.0,104340.0,0.00378268]
[1738290736274,0.81423523,104350.0,104340.0,0.00078268]
[1738290736439,0.72918064,104350.0,104340.0,0.00078268]
[1738290737020,0.60568675,104350.0,104340.0,0.00078268]
[1738290738054,0.72918064,104350.0,104340.0,0.00078268]
[1738290739167,0.60568675,104350.0,104340.0,0.00078268]
[1738290740618,0.6443288,104350.0,104340.0,0.00078268]
[1738290740822,0.74168556,104350.0,104340.0,0.00078268]
[1738290743325,0.6443288,104350.0,104340.0,0.00078268]
[1738290745734,0.644585,104350.0,104340.0,0.00078268]
[1738290747083,0.660355,104350.0,104340.0,0.00078268]
[1738290747299,0.79012297,104350.0,104340.0,0.00078268]
[1738290747715,0.709055,104350.0,104340.0,0.00078268]
[1738290748331,0.49778703,104350.0,104340.0,0.00078268]
[1738290748530,0.48201703,104350.0,104340.0,0.00078268]
[1738290748767,0.48601703,104350.0,104340.0,0.00078268]
[1738290749158,0.567085,104350.0,104340.0,0.00078268]
[1738290751133,0.597085,104350.0,104340.0,0.00078268]
[1738290752084,0.69444176,104350.0,104340.0,0.00078268]
[1738290752471,0.597085,104350.0,104340.0,0.00078268]
[1738290754775,0.51601703,104350.0,104340.0,0.00078268]
[1738290756340,0.28877387,104350.0,104340.0,0.04938268]
[1738290757177,0.26877387,104350.0,104340.0,0.12538268]
[1738290757800,0.28877387,104350.0,104340.0,0.12538268]
[1738290757918,0.25877387,104350.0,104340.0,0.12538268]
[1738290758103,0.25777387,104350.0,104340.0,0.12538268]
[1738290758316,0.25477387,104350.0,104340.0,0.12538268]
[1738290759122,0.23477387,104350.0,104340.0,0.12538268]
[1738290765065,0.1537059,104350.0,104340.0,0.12538268]
[1738290765411,0.23477387,104350.0,104340.0,0.12538268]
[1738290765841,0.0099589,104350.0,104340.0,0.24562584]
[1738290766247,0.1537059,104350.0,104340.0,0.24562584]
[1738290766454,0.0099589,104350.0,104340.0,0.38938584]
[1738290767045,0.0002562,104350.0,104340.0,0.38938584]
[1738290767306,0.0002562,104350.0,104340.0,0.54938584]
[1738290767524,0.0002562,104350.0,104340.0,0.67925791]
[1738290767941,0.0002562,104350.0,104340.0,0.57561791]
[1738290768361,0.0002562,104350.0,104340.0,0.56925791]
[1738290768565,0.0002562,104350.0,104340.0,0.39574584]
[1738290768785,0.0012562,104350.0,104340.0,0.39774584]
[1738290768966,0.0012562,104350.0,104340.0,0.39138584]
[1738290769575,0.0012562,104350.0,104340.0,0.39338584]
[1738290769777,0.1450032,104350.0,104340.0,0.39338584]
[1738290769988,0.1440032,104350.0,104340.0,0.38938584]
[1738290770134,0.1440032,104350.0,104340.0,0.39238584]
[1738290770773,0.1440032,104350.0,104340.0,0.38938584]
[1738290771321,0.1440032,104350.0,104340.0,0.24762584]
[1738290771505,0.1450032,104350.0,104340.0,0.00478268]
[1738290771738,0.1440032,104350.0,104340.0,0.00278268]
[1738290772176,0.1450032,104350.0,104340.0,0.00478268]
[1738290772392,0.26963638,104350.0,104340.0,0.00478268]
[1738290772598,0.26844792,104350.0,104340.0,0.00478268]
[1738290773630,0.1450032,104350.0,104340.0,0.00478268]
[1738290777925,0.56070697,104350.0,104340.0,0.00478268]
[1738290778136,0.65795013,104350.0,104340.0,0.00478268]
[1738290778519,0.64039108,104350.0,104340.0,0.00478268]
[1738290778830,0.63939108,104350.0,104340.0,0.00278268]
[1738290779246,0.63939108,104350.0,104340.0,0.00078268]
[1738290779889,0.64239108,104350.0,104340.0,0.00078268]
[1738290780116,0.67239108,104350.0,104340.0,0.00078268]
[1738290780319,0.67339108,104350.0,104340.0,0.00078268]
[1738290781567,0.70357246,104350.0,104340.0,0.00078268]
[1738290781772,0.68310422,104350.0,104340.0,0.00078268]
[1738290782187,0.80654894,104350.0,104340.0,0.00078268]
[1738290783571,0.80554894,104350.0,104340.0,0.00078268]
[1738290783957,0.80754894,104350.0,104340.0,0.00078268]
[1738290784160,0.82676388,104350.0,104340.0,0.00078268]
[1738290784390,0.92112064,104350.0,104340.0,0.00078268]
[1738290784772,0.94289064,104350.0,104340.0,0.00078268]
[1738290787237,0.84553388,104350.0,104340.0,0.00078268]
[1738290796412,0.84553388,104350.0,104340.0,6.8e-07]
[1738290797709,0.0825,104340.0,104330.0,2.8e-07]
[1738290797874,0.57158106,104340.0,104330.0,0.00048711]
[1738290798079,0.66517445,104340.0,104330.0,0.00048711]
[1738290798275,0.5703926,104340.0,104330.0,0.00048711]
[1738290799220,0.5713926,104340.0,104330.0,0.00048711]
[1738290801076,0.5743926,104340.0,104330.0,0.00048711]
[1738290802243,0.5743926,104340.0,104320.0,5e-08]
[1738290802244,0.267274,104330.0,104320.0,5e-08]
[1738290802448,0.267288,104320.0,104310.0,0.00012461]
[1738290802654,0.26723272,104320.0,104310.0,0.00062034]
[1738290803135,0.28723272,104320.0,104310.0,0.00062034]
[1738290803345,0.39067744,104320.0,104310.0,0.00062034]
[1738290803764,0.143815,104300.0,104290.0,0.26986581]
[1738290803970,0.143815,104300.0,104290.0,0.36615022]
[1738290804809,0.26725972,104300.0,104290.0,0.36615022]
[1738290804965,0.26725972,104300.0,104290.0,0.22232322]
[1738290805166,0.26725972,104300.0,104290.0,0.20032322]
[1738290805371,0.26725972,104300.0,104290.0,0.20132322]
[1738290805739,0.26725972,104300.0,104290.0,0.22432322]
[1738290806566,0.26725972,104300.0,104290.0,0.20132322]
[1738290806744,0.143815,104300.0,104290.0,0.20132322]
[1738290810410,0.1532851,104300.0,104290.0,0.20132322]
[1738290810793,0.527306,104310.0,104290.0,0.53691422]
[1738290811130,0.143813,104310.0,104300.0,0.0782]
[1738290811341,0.143815,104300.0,104290.0,0.22464316]
[1738290811785,0.143815,104300.0,104290.0,0.24564316]
[1738290811955,0.143815,104300.0,104290.0,0.39047216]
[1738290813124,0.527306,104310.0,104290.0,0.58224016]
[1738290813534,0.335558,104310.0,104300.0,0.24105816]
[1738290814209,0.335558,104310.0,104300.0,0.09724316]
[1738290814333,0.335558,104310.0,104300.0,0.26405816]
[1738290814531,0.335558,104310.0,104300.0,0.33975816]
[1738290814733,0.37432029,104320.0,104300.0,0.53150916]
[1738290814933,0.37432029,104320.0,104300.0,0.53150216]
[1738290815136,0.37432029,104320.0,104310.0,0.143802]
[1738290815343,0.34582126,104320.0,104310.0,0.143802]
[1738290815647,0.34582126,104320.0,104310.0,0.191702]
[1738290816087,0.34582126,104320.0,104310.0,0.0479]
[1738290816923,0.00047937,104320.0,104310.0,0.37030375]
[1738290817128,0.00047937,104320.0,104310.0,0.54924349]
[1738290817382,0.00047937,104320.0,104310.0,0.43224349]
[1738290817593,0.00047937,104320.0,104310.0,0.25544149]
[1738290817594,0.14426737,104320.0,104310.0,0.25544149]
[1738290817804,0.14426737,104320.0,104310.0,0.15819833]
[1738290818029,0.33599037,104320.0,104300.0,0.0804]
[1738290818222,0.00047937,104320.0,104310.0,0.09820174]
[1738290818439,0.00047937,104320.0,104310.0,0.22510166]
[1738290818649,0.00047937,104320.0,104310.0,0.70342908]
[1738290818850,0.00047937,104320.0,104310.0,0.99723108]
[1738290819059,0.00047937,104320.0,104310.0,1.03023108]
[1738290819275,0.00047937,104320.0,104310.0,1.16012095]
[1738290820273,0.00047937,104320.0,104310.0,1.06868095]
[1738290820436,0.00147937,104320.0,104310.0,1.06312095]
[1738290820639,0.00147937,104320.0,104310.0,1.06012095]
[1738290820910,0.00147937,104320.0,104310.0,1.03023108]
[1738290821114,0.00147937,104320.0,104310.0,1.00023108]
[1738290821519,0.14526737,104320.0,104310.0,0.22814316]
[1738290821814,0.14526737,104320.0,104310.0,0.10124316]
[1738290822831,0.14426737,104320.0,104310.0,0.09724316]
[1738290823250,0.14426737,104320.0,104310.0,0.10024316]
[1738290823406,0.14526737,104320.0,104310.0,0.10124316]
[1738290823614,0.14526737,104320.0,104310.0,0.09824316]
[1738290824025,0.14526737,104320.0,104310.0,0.10024316]
[1738290824247,0.14526737,104320.0,104310.0,0.05364127]
[1738290824402,0.14526737,104320.0,104310.0,0.00703529]
[1738290824764,0.33698737,104320.0,104310.0,0.0770513]
[1738290826754,0.33698737,104320.0,104300.0,0.568628]
[1738290826963,0.52871537,104320.0,104300.0,0.66587116]
[1738290827163,0.143802,104310.0,104300.0,0.66587116]
[1738290827956,0.143802,104310.0,104300.0,0.66887116]
[1738290828363,0.53754185,104320.0,104300.0,0.66887116]
[1738290828563,0.001,104310.0,104300.0,0.66887116]
[1738290829376,0.144802,104310.0,104300.0,0.66587116]
[1738290829736,0.144802,104310.0,104300.0,0.66887116]
[1738290830401,0.144802,104310.0,104300.0,0.17674316]
[1738290830616,0.144802,104310.0,104300.0,0.10024316]
[1738290830813,0.144802,104310.0,104300.0,0.25024316]
[1738290831388,0.34754672,104310.0,104300.0,0.003]
[1738290831596,0.44478988,104310.0,104300.0,0.003]
[1738290832757,0.30098788,104310.0,104290.0,0.000122]
[1738290832956,0.143815,104300.0,104290.0,0.000122]
[1738290833450,0.31515972,104300.0,104290.0,0.000122]
[1738290834043,0.31515972,104300.0,104290.0,0.003122]
[1738290834240,0.31615972,104300.0,104290.0,0.003122]
[1738290834546,0.31615972,104300.0,104290.0,0.000122]
[1738290835926,0.31266281,104300.0,104290.0,0.003122]
[1738290837105,0.31166281,104300.0,104290.0,0.000122]
[1738290837523,0.31166281,104300.0,104290.0,0.002122]
[1738290837524,0.31266281,104300.0,104290.0,0.002122]
[1738290839390,0.31261588,104300.0,104290.0,0.002122]
[1738290841568,0.3223526,104300.0,104290.0,0.002122]
[1738290842319,0.2744526,104300.0,104290.0,0.002122]
[1738290843346,0.3527526,104300.0,104290.0,0.002122]
[1738290844661,0.527394,104290.0,104270.0,0.60643297]
[1738290844814,0.527394,104290.0,104270.0,0.70367613]
[1738290845013,0.527394,104290.0,104270.0,0.89548513]
[1738290845228,0.143843,104280.0,104270.0,0.36199516]
[1738290845560,0.143843,104280.0,104270.0,0.09724316]
[1738290846127,0.143843,104280.0,104270.0,0.09729086]
[1738290846357,0.14432208,104280.0,104270.0,0.10129086]
[1738290846898,0.14432208,104280.0,104270.0,0.09729086]
[1738290847088,0.14432208,104280.0,104270.0,0.10029086]
[1738290847630,0.14532208,104280.0,104270.0,0.10029086]
[1738290849655,0.2687668,104280.0,104270.0,0.0030477]
[1738290849898,0.3452668,104280.0,104270.0,0.0030477]
[1738290850590,0.3452668,104280.0,104270.0,4.77e-05]
[1738290850789,0.3442668,104280.0,104270.0,4.77e-05]
[1738290851131,0.3442668,104280.0,104270.0,0.0010477]
[1738290851690,0.35399894,104280.0,104270.0,0.0010477]
[1738290853642,0.49744366,104280.0,104270.0,0.0010477]
[1738290853786,0.49744366,104280.0,104270.0,0.0011697]
[1738290853987,0.37399894,104280.0,104270.0,0.0011697]
[1738290855007,0.25055422,104280.0,104270.0,0.0011697]
[1738290855439,0.25055422,104280.0,104270.0,0.0001697]
[1738290855846,0.37399894,104280.0,104270.0,0.0001697]
[1738290856658,0.37399894,104280.0,104270.0,0.0011697]
[1738290857067,0.37399894,104280.0,104270.0,0.0001697]
[1738290858386,0.25055422,104280.0,104270.0,0.0001697]
[1738290858589,0.14432208,104280.0,104270.0,0.0001697]
[1738290858795,0.16432208,104280.0,104270.0,0.0001697]
[1738290860597,0.36445526,104280.0,104270.0,0.0001697]
[1738290860813,0.38500996,104280.0,104270.0,0.0001697]
[1738290861017,0.38500996,104280.0,104270.0,0.09741286]
[1738290861018,0.14432208,104280.0,104270.0,0.09741286]
[1738290861461,0.00047908,104280.0,104270.0,0.24126986]
[1738290861674,0.14432208,104280.0,104270.0,0.09741286]
[1738290862032,0.14432208,104280.0,104270.0,0.24226986]
[1738290862244,0.00047908,104280.0,104270.0,0.24226986]
[1738290862811,0.00047908,104280.0,104270.0,0.24126986]
[1738290862982,0.00147908,104280.0,104270.0,0.24326986]
[1738290865289,0.00147908,104280.0,104270.0,0.32116986]
[1738290866386,0.00147908,104280.0,104270.0,0.35102988]
[1738290867155,0.00173528,104280.0,104270.0,0.35102988]
[1738290867839,0.00173528,104280.0,104270.0,0.32116986]
[1738290868567,0.00173528,104280.0,104270.0,0.38403763]
[1738290870380,0.00173528,104280.0,104270.0,0.35103763]
[1738290874465,0.00173528,104280.0,104270.0,0.32116986]
[1738290874719,0.00173528,104280.0,104270.0,0.35105458]
[1738290875240,0.00173528,104280.0,104270.0,0.32116986]
[1738290875522,0.14557828,104280.0,104270.0,0.0021697]
[1738290878371,0.14557828,104280.0,104270.0,0.1460267]
[1738290878575,0.14557828,104280.0,104270.0,0.24326986]
[1738290879011,0.14557828,104280.0,104270.0,0.24126986]
[1738290879206,0.14557828,104280.0,104270.0,0.24326986]
[1738290879872,0.14457828,104280.0,104270.0,0.24326986]
[1738290880090,0.14457828,104280.0,104270.0,0.09941286]
[1738290880478,0.14457828,104280.0,104270.0,0.09741286]
[1738290880909,0.14457828,104280.0,104270.0,0.09841286]
[1738290883165,0.14457828,104280.0,104270.0,0.24226986]
[1738290886130,0.14457828,104280.0,104270.0,0.09841286]
[1738290891294,0.14457828,104280.0,104270.0,0.0011697]
[1738290895121,0.15428663,104280.0,104270.0,0.0011697]
[1738290896560,0.14457828,104280.0,104270.0,0.24322879]
[1738290896773,0.00073528,104280.0,104270.0,0.24226986]
[1738290896983,0.00073528,104280.0,104270.0,0.27218039]
[1738290897200,0.14457828,104280.0,104270.0,0.24226986]
[1738290898083,0.00073528,104280.0,104270.0,0.24226986]
[1738290899856,0.00073528,104280.0,104270.0,0.26526986]
[1738290900069,0.00073528,104280.0,104270.0,0.34047938]
[1738290901334,0.00073528,104280.0,104270.0,0.49047938]
[1738290901538,0.00073528,104280.0,104270.0,0.57617938]
[1738290902209,0.00073528,104280.0,104270.0,0.77617938]
[1738290902747,0.00173528,104280.0,104270.0,0.77617938]
[1738290902994,0.00073528,104280.0,104270.0,0.77517938]
[1738290903208,0.0002562,104300.0,104290.0,0.353629]
[1738290903412,0.0002562,104300.0,104290.0,1.81065549]
[1738290903824,0.0002562,104320.0,104310.0,0.153802]
[1738290904034,0.0002562,104320.0,104310.0,0.09724316]
[1738290904225,0.1440442,104320.0,104310.0,0.39104516]
[1738290904426,0.0002562,104320.0,104310.0,0.41409286]
[1738290904862,0.34738892,104320.0,104310.0,0.09729086]
[1738290905066,0.41708892,104320.0,104310.0,4.77e-05]
[1738290905684,0.41708892,104320.0,104310.0,0.0020477]
[1738290905887,0.41808892,104320.0,104310.0,0.0020477]
[1738290906100,0.39708892,104320.0,104310.0,4.77e-05]
[1738290906491,0.39708892,104320.0,104310.0,0.0040477]
[1738290906492,0.41708892,104320.0,104310.0,0.0040477]
[1738290906901,0.41708892,104320.0,104310.0,0.0020477]
[1738290907315,0.41708892,104320.0,104310.0,0.0030477]
[1738290907520,0.2936442,104320.0,104310.0,0.0030477]
[1738290907940,0.41708892,104320.0,104310.0,0.0030477]
[1738290908146,0.49433208,104320.0,104310.0,0.0030477]
[1738290908472,0.52376398,104320.0,104310.0,0.0030477]
[1738290908682,0.50376398,104320.0,104310.0,0.0030477]
[1738290910803,0.40652082,104320.0,104310.0,0.0030477]
[1738290911529,0.50376398,104320.0,104310.0,0.0030477]
[1738290911732,0.40652082,104320.0,104310.0,0.0030477]
[1738290913155,0.43652082,104320.0,104310.0,0.0030477]
[1738290914976,0.53376398,104320.0,104310.0,0.0030477]
[1738290917059,0.68376398,104320.0,104310.0,0.0030477]
[1738290918054,0.8302087,104320.0,104310.0,0.0030477]
[1738290918474,0.8302087,104320.0,104310.0,0.0010477]
[1738290918674,0.8332087,104320.0,104310.0,0.0010477]
[1738290919082,0.8332087,104320.0,104310.0,4.77e-05]
[1738290919500,0.71176398,104320.0,104310.0,4.77e-05]
[1738290920641,0.8352087,104320.0,104310.0,4.77e-05]
[1738290921286,0.68876398,104320.0,104310.0,4.77e-05]
[1738290925352,0.41531926,104320.0,104310.0,4.77e-05]
[1738290925767,0.68876398,104320.0,104310.0,4.77e-05]
[1738290927139,0.71720169,104320.0,104310.0,4.77e-05]
[1738290927922,0.61995853,104320.0,104310.0,4.77e-05]
[1738290928660,0.78612074,104320.0,104310.0,4.77e-05]
[1738290928889,0.68876398,104320.0,104310.0,4.77e-05]
[1738290934235,0.65876398,104320.0,104310.0,4.77e-05]
[1738290935335,0.7822087,104320.0,104310.0,4.77e-05]
[1738290935551,0.65876398,104320.0,104310.0,4.77e-05]
[1738290937586,0.28192082,104320.0,104310.0,4.77e-05]
[1738290937796,0.1584761,104320.0,104310.0,4.77e-05]
[1738290938002,0.28310928,104320.0,104310.0,4.77e-05]
[1738290938367,0.28192082,104320.0,104310.0,4.77e-05]
[1738290939009,0.27692082,104320.0,104310.0,4.77e-05]
[1738290939208,0.27792082,104320.0,104310.0,4.77e-05]
[1738290939812,0.27692082,104320.0,104310.0,4.77e-05]
[1738290940097,0.27792082,104320.0,104310.0,4.77e-05]
[1738290941646,0.1544761,104320.0,104310.0,4.77e-05]
[1738290941852,0.27792082,104320.0,104310.0,4.77e-05]
[1738290944489,0.1544761,104320.0,104310.0,4.77e-05]
[1738290944784,0.27792082,104320.0,104310.0,4.77e-05]
[1738290947792,0.1450442,104320.0,104310.0,4.77e-05]
[1738290948001,0.0012562,104320.0,104310.0,0.36865142]
[1738290948218,0.0012562,104320.0,104310.0,0.36769286]
[1738290948775,0.0002562,104320.0,104310.0,0.36769286]
[1738290948973,0.1440442,104320.0,104310.0,0.36769286]
[1738290949232,0.0002562,104320.0,104310.0,0.36969286]
[1738290949403,0.0012562,104320.0,104310.0,0.37169286]
[1738290950303,0.0012562,104320.0,104310.0,0.54469286]
[1738290950718,0.0012562,104320.0,104310.0,0.57454456]
[1738290950924,0.0012562,104320.0,104310.0,0.68102456]
[1738290951565,0.0012562,104320.0,104310.0,0.67902456]
[1738290951780,0.0002562,104320.0,104310.0,0.67702456]
[1738290952120,0.0012562,104320.0,104310.0,0.68202456]
[1738290953085,0.0012562,104320.0,104310.0,0.69202456]
[1738290953903,0.0002562,104350.0,104340.0,0.43996]
[1738290954112,0.0002562,104350.0,104340.0,1.59474078]
[1738290954321,0.0002562,104350.0,104340.0,1.08345486]
[1738290954532,0.0002562,104350.0,104340.0,1.05360316]
[1738290954952,0.0002562,104350.0,104340.0,1.07660316]
[1738290955180,0.0002562,104350.0,104340.0,1.56098467]
[1738290955582,0.0002562,104350.0,104340.0,1.57098467]
[1738290955988,0.0002562,104350.0,104340.0,1.60072518]
[1738290956485,0.0002562,104350.0,104340.0,1.57098467]
[1738290957100,0.0002562,104350.0,104340.0,1.60070545]
[1738290957320,0.0002562,104350.0,104340.0,1.57098467]
[1738290957526,0.0002562,104350.0,104340.0,1.57746467]
[1738290957974,0.0002562,104350.0,104340.0,1.03806467]
[1738290958173,0.0002562,104350.0,104340.0,1.03706467]
[1738290958395,0.3455332,104380.0,104360.0,0.526997]
[1738290958618,0.3455332,104380.0,104360.0,0.62424116]
[1738290959217,0.3455332,104380.0,104360.0,0.70704116]
[1738290959636,0.3455332,104380.0,104360.0,0.70708886]
[1738290959849,0.3455332,104380.0,104370.0,0.143719]
[1738290960200,0.3455332,104380.0,104360.0,0.70907986]
[1738290960988,0.3455332,104380.0,104360.0,0.56535786]
[1738290961228,0.3455332,104380.0,104360.0,0.70907986]
[1738290961444,0.3465332,104380.0,104360.0,0.70907986]
[1738290961665,0.0112162,104380.0,104370.0,0.24192018]
[1738290961885,0.0102162,104380.0,104370.0,0.24096216]
[1738290962330,0.0122162,104380.0,104370.0,0.26396216]
[1738290962596,0.0122162,104380.0,104370.0,0.74224808]
[1738290963025,0.0132162,104380.0,104370.0,0.74229578]
[1738290963572,0.0112162,104380.0,104370.0,0.74229578]
[1738290964156,0.0102162,104380.0,104370.0,0.74229578]
[1738290964647,0.0102162,104380.0,104370.0,0.74329578]
[1738290965001,0.0102162,104380.0,104370.0,0.74729578]
[1738290965815,0.0102162,104380.0,104370.0,1.03009578]
[1738290966020,0.0102162,104380.0,104370.0,1.02009578]
[1738290966385,0.0102162,104380.0,104370.0,1.02653578]
[1738290966848,0.0102162,104380.0,104370.0,0.89729578]
[1738290967055,0.0102162,104380.0,104370.0,0.41900986]
[1738290967229,0.0102162,104380.0,104370.0,0.89729578]
[1738290971804,0.0102162,104380.0,104370.0,0.98559578]
[1738290972016,0.0102162,104380.0,104370.0,1.08559578]
[1738290972230,0.0102162,104380.0,104370.0,1.13499578]
[1738290972451,0.0102162,104380.0,104370.0,1.1645974]
[1738290972877,0.0102162,104380.0,104370.0,1.13099578]
[1738290973089,0.0102162,104380.0,104370.0,1.13799578]
[1738290973293,0.0102162,104380.0,104370.0,1.16759865]
[1738290973500,0.0102162,104380.0,104370.0,1.26659865]
[1738290973931,0.0102162,104380.0,104370.0,1.26859865]
[1738290974322,0.00025599,104390.0,104380.0,0.143705]
[1738290974562,0.00025599,104390.0,104380.0,0.34790713]
[1738290974771,0.00025599,104390.0,104380.0,0.31734816]
[1738290975219,0.00025599,104390.0,104380.0,0.35699075]
[1738290975422,0.00025599,104390.0,104380.0,0.35999075]
[1738290975635,0.00073566,104390.0,104380.0,0.36799075]
[1738290977199,0.00073566,104390.0,104380.0,1.65899075]
[1738290977625,0.00073566,104390.0,104380.0,1.66848753]
[1738290978436,0.00073566,104390.0,104380.0,1.65748753]
[1738290978649,0.00073566,104390.0,104380.0,1.68019417]
[1738290978861,0.00073566,104390.0,104380.0,1.68919417]
[1738290979509,0.00073566,104390.0,104380.0,1.58919417]
[1738290979722,0.00073566,104390.0,104380.0,1.49563417]
[1738290979937,0.00073566,104390.0,104380.0,0.59423417]
[1738290981461,0.00073566,104390.0,104380.0,0.45659075]
[1738290981681,0.00073566,104390.0,104380.0,0.44303075]
[1738290981895,0.22732666,104390.0,104380.0,0.23399586]
[1738290982115,0.22732666,104390.0,104380.0,0.38399586]
[1738290982335,0.22732666,104390.0,104380.0,0.11029086]
[1738290982546,0.00073566,104390.0,104380.0,0.25399586]
[1738290982779,0.00073566,104390.0,104380.0,0.30667672]
[1738290982985,0.00073566,104390.0,104380.0,0.27699586]
[1738290983411,0.00073566,104390.0,104380.0,0.30269482]
[1738290983770,0.00073566,104390.0,104380.0,0.30569482]
[1738290984226,0.00073566,104390.0,104380.0,0.29669482]
[1738290984448,0.00073566,104390.0,104380.0,0.30569482]
[1738290985022,0.00073566,104390.0,104380.0,0.30581662]
[1738290986029,0.00073566,104390.0,104380.0,0.78410254]
[1738290987883,0.00073566,104390.0,104380.0,0.76110254]
[1738290988081,0.21952666,104390.0,104380.0,0.04186846]
[1738290988292,0.26472666,104390.0,104380.0,0.04186846]
[1738290989338,0.26472666,104390.0,104380.0,0.0121695]
[1738290989614,0.28472666,104390.0,104380.0,0.0091695]
[1738290989822,0.50552814,104390.0,104380.0,0.0111695]
[1738290990039,0.48541454,104390.0,104380.0,0.0111695]
[1738290990466,0.38817138,104390.0,104380.0,0.0111695]
[1738290990674,0.26472666,104390.0,104380.0,0.0091695]
[1738290990879,0.26472666,104390.0,104380.0,0.0021695]
[1738290991084,0.38817138,104390.0,104380.0,0.0081695]
[1738290991288,0.38817138,104390.0,104380.0,0.0021695]
[1738290991496,0.39763982,104390.0,104380.0,0.0001695]
[1738290992467,0.42763982,104390.0,104380.0,0.0001695]
[1738290994107,0.3041951,104390.0,104380.0,0.0001695]
[1738290994726,0.26472666,104390.0,104380.0,0.0001695]
[1738290995070,0.21952666,104390.0,104380.0,0.1438745]
[1738290995273,0.07583566,104390.0,104380.0,0.1438745]
[1738290995425,0.21952666,104390.0,104380.0,0.1438745]
[1738290995840,0.07583566,104390.0,104380.0,0.1438745]
[1738290996064,0.21952666,104390.0,104380.0,0.1438745]
[1738290996265,0.22152666,104390.0,104380.0,0.1438745]
[1738290996590,0.21952666,104390.0,104380.0,0.0001695]
[1738290996885,0.21952666,104390.0,104380.0,0.1438745]
[1738290997115,0.21952666,104390.0,104380.0,0.1448745]
[1738290997553,0.21952666,104390.0,104380.0,0.1478745]
[1738290998845,0.21952666,104390.0,104380.0,0.14883243]
[1738290999383,0.14442666,104390.0,104380.0,0.14883243]
[1738290999616,0.00073566,104390.0,104380.0,0.24511766]